fUST/lending_fUST_20250915
["ID","MTS","AMOUNT","RATE_DAILY","PERIOD"]
[385568886,1757901043468,-540.13886746,0.00022191,3]
[385568888,1757901043477,-480.0,0.00022191,3]
[385568890,1757901043487,-480.0,0.00022191,3]
[385568892,1757901043496,-480.0,0.00022191,3]
[385568894,1757901043505,-341.70974021,0.00022191,3]
[385568895,1757901043514,-480.0,0.00022191,3]
[385568896,1757901043523,-1205.42,0.00022191,3]
[385568897,1757901043533,-522.64920028,0.00022191,3]
[385568898,1757901043542,-480.0,0.00022191,3]
[385568899,1757901043551,-480.0,0.00022191,3]
[385568900,1757901043560,-480.0,0.00022191,3]
[385568901,1757901043569,-522.45,0.00022191,3]
[385568902,1757901043578,-480.0,0.00022191,3]
[385568903,1757901043719,-480.0,0.00022191,3]
[385568904,1757901043747,-502.44995821,0.00022191,3]
[385568905,1757901043759,-367.45410641,0.00022353,3]
[385568906,1757901043771,-300.0,0.00022354,20]
[385568907,1757901043781,-300.0,0.00022354,20]
[385568908,1757901043791,-300.0,0.00022354,20]
[385568909,1757901043801,-300.0,0.00022354,20]
[385568910,1757901043812,-300.0,0.00022354,20]
[385568911,1757901043822,-300.0,0.00022354,20]
[385568912,1757901043831,-300.0,0.00022354,20]
[385568913,1757901043840,-300.0,0.00022354,20]
[385568914,1757901043851,-300.0,0.00022354,20]
[385568915,1757901043861,-300.0,0.00022354,20]
[385568916,1757901043870,-300.0,0.00022354,20]
[385568917,1757901043879,-300.0,0.00022354,20]
[385568918,1757901043888,-300.0,0.00022354,20]
[385568919,1757901043898,-300.0,0.00022354,20]
[385568920,1757901043907,-300.0,0.00022354,20]
[385568921,1757901043916,-300.0,0.00022354,20]
[385568922,1757901043925,-300.0,0.00022354,20]
[385568923,1757901043935,-300.0,0.00022354,20]
[385568924,1757901043944,-300.0,0.00022354,20]
[385568925,1757901043953,-300.0,0.00022354,20]
[385568926,1757901043962,-300.0,0.00022354,20]
[385568927,1757901043972,-300.0,0.00022354,20]
[385568928,1757901043981,-300.0,0.00022354,20]
[385568929,1757901043990,-300.0,0.00022354,20]
[385568930,1757901043999,-300.0,0.00022354,20]
[385568931,1757901044009,-300.0,0.00022354,20]
[385568932,1757901044018,-300.0,0.00022354,20]
[385568933,1757901044028,-300.0,0.00022354,20]
[385568934,1757901044037,-300.0,0.00022354,20]
[385568935,1757901044046,-510.51901283,0.00022408,2]
[385568936,1757901044056,-500.0,0.00022408,2]
[385568937,1757901044065,-151.0,0.00022446,7]
[385568938,1757901044074,-1659.5,0.00022464,3]
[385568939,1757901044083,-596.59691631,0.00022464,3]
[385568940,1757901044092,-480.0,0.00022464,3]
[385568941,1757901044101,-151.0,0.00022465,7]
[385568942,1757901044110,-480.0,0.00022465,3]
[385568943,1757901044120,-151.0,0.00022465,7]
[385568944,1757901044129,-480.0,0.00022465,3]
[385568945,1757901044139,-480.0,0.00022465,3]
[385568946,1757901044150,-507.81054006,0.00022465,3]
[385568947,1757901044159,-191.02585643,0.00022465,3]
[385568948,1757901044168,-1205.42,0.00022465,3]
[385568949,1757901044177,-480.0,0.00022465,3]
[385568950,1757901044186,-384.11064526,0.00022465,3]
[385568951,1757901044195,-480.0,0.00022465,3]
[385568952,1757901044204,-522.45,0.00022465,3]
[385568953,1757901044213,-480.0,0.00022465,3]
[385568954,1757901044222,-480.0,0.00022465,3]
[385568955,1757901044231,-160.0,0.00022536,2]
[385568956,1757901044240,-847.27885267,0.00022548,2]
[385568957,1757901044249,-160.0,0.00022548,2]
[385568958,1757901044258,-160.0,0.00022548,2]
[385568959,1757901044267,-233.1999649,0.00022548,2]
[385568960,1757901044276,-160.0,0.00022548,2]
[385568961,1757901044285,-1659.5,0.00022738,3]
[385568962,1757901044294,-198.19258445,0.00022738,3]
[385568963,1757901044303,-480.0,0.00022739,3]
[385568964,1757901044312,-480.0,0.00022739,3]
[385568965,1757901044321,-206.65572896,0.00022739,3]
[385568966,1757901044330,-1205.42,0.00022739,3]
[385568967,1757901044339,-480.0,0.00022739,3]
[385568968,1757901044348,-480.0,0.00022739,3]
[385568969,1757901044356,-522.45,0.00022739,3]
[385568970,1757901044366,-480.0,0.00022739,3]
[385568971,1757901044375,-480.0,0.00022739,3]
[385568972,1757901044384,-1000.0,0.00022956,2]
[385568973,1757901044393,-847.27885267,0.00023,3]
[385568974,1757901044401,-233.1999649,0.00023,3]
[385568975,1757901044410,-151.0,0.00023012,7]
[385568976,1757901044419,-1659.5,0.00023012,3]
[385568977,1757901044429,-480.0,0.00023013,3]
[385568978,1757901044438,-480.0,0.00023013,3]
[385568979,1757901044447,-1205.42,0.00023013,3]
[385568980,1757901044455,-480.0,0.00023013,3]
[385568981,1757901044464,-480.0,0.00023013,3]
[385568982,1757901044473,-522.45,0.00023013,3]
[385568983,1757901044482,-480.0,0.00023013,3]
[385568984,1757901044491,-480.0,0.00023013,3]
[385568985,1757901044500,-160.0,0.000231,2]
[385568986,1757901044509,-1659.5,0.00023286,3]
[385568987,1757901044518,-500.0,0.00023286,2]
[385568988,1757901044527,-500.0,0.00023286,2]
[385568989,1757901044536,-181.68494755,0.00023286,2]
[385568990,1757901044545,-500.0,0.00023286,2]
[385568991,1757901044554,-500.0,0.00023286,2]
[385568992,1757901044563,-500.0,0.00023286,2]
[385568993,1757901044572,-500.0,0.00023286,2]
[385568994,1757901044582,-500.0,0.00023286,2]
[385568995,1757901044591,-500.0,0.00023286,2]
[385568996,1757901044600,-650.85402112,0.00023286,2]
[385568997,1757901044609,-247.75021969,0.00023287,3]
[385568998,1757901044619,-480.0,0.00023287,3]
[385568999,1757901044628,-1205.42,0.00023287,3]
[385569000,1757901044637,-480.0,0.00023287,3]
[385569001,1757901044646,-698.94,0.00023287,2]
[385569002,1757901044655,-430.70613553,0.00023287,3]
[385569003,1757901044665,-522.45,0.00023287,3]
[385569004,1757901044674,-480.0,0.00023287,3]
[385569005,1757901044683,-480.0,0.00023287,3]
[385569006,1757901044693,-1001.58180456,0.000235,2]
[385569007,1757901044702,-1500.0,0.00023504,2]
[385569008,1757901044711,-1659.5,0.0002356,3]
[385569009,1757901044720,-480.0,0.00023561,3]
[385569010,1757901044729,-1205.42,0.00023561,3]
[385569011,1757901044738,-198.59002613,0.00023561,3]
[385569012,1757901044748,-522.45,0.00023561,3]
[385569013,1757901044757,-480.0,0.00023561,3]
[385569014,1757901044766,-480.0,0.00023561,3]
[385569015,1757901044775,-260.0,0.00023648,2]
[385569016,1757901044784,-500.0,0.000237,2]
[385569017,1757901044793,-500.0,0.000237,2]
[385569018,1757901044803,-212.33869488,0.00023734,2]
[385569019,1757901044812,-500.0,0.00023813,2]
[385569020,1757901044821,-501.50493902,0.00023813,2]
[385569021,1757901044830,-500.0,0.00023813,2]
[385569022,1757901044839,-500.0,0.00023813,2]
[385569023,1757901044849,-500.0,0.00023813,2]
[385569024,1757901044858,-500.0,0.00023813,2]
[385569025,1757901044867,-500.0,0.00023813,2]
[385569026,1757901044877,-500.0,0.00023813,2]
[385569027,1757901044887,-500.0,0.00023813,2]
[385569028,1757901044896,-500.0,0.00023813,2]
[385569029,1757901044905,-501.05974165,0.00023813,2]
[385569030,1757901044915,-185.0,0.00023817,2]
[385569031,1757901044924,-303.0,0.00023817,2]
[385569032,1757901044933,-420.0,0.00023817,2]
[385569033,1757901044943,-225.36,0.00023825,10]
[385569034,1757901044952,-1659.5,0.00023834,3]
[385569035,1757901044961,-480.0,0.00023835,3]
[385569036,1757901044971,-1205.42,0.00023835,3]
[385569037,1757901044981,-522.45,0.00023835,3]
[385569038,1757901044991,-480.0,0.00023835,3]
[385569039,1757901045000,-165.4481119,0.00023835,3]
[385569040,1757901045010,-151.0,0.000239,7]
[385569041,1757901045024,-231.418392,0.000239,7]
[385569042,1757901045034,-151.0,0.00023914,7]
[385569043,1757901045044,-500.0,0.00023914,2]
[385569044,1757901045054,-500.0,0.00023922,2]
[385569045,1757901045064,-158.23843556,0.00023933,2]
[385569046,1757901045073,-500.0,0.00023933,2]
[385569047,1757901045083,-167.067319,0.00023952,7]
[385569048,1757901045094,-977.0,0.00023955,2]
[385569049,1757901045104,-635.725,0.00023955,2]
[385569050,1757901045113,-2156.0,0.00023955,2]
[385569051,1757901045122,-662.26071543,0.0002398,2]
[385569052,1757901045132,-385.33377945,0.0002398,2]
[385569053,1757901045141,-185.90000498,0.0002399,2]
[385569054,1757901045150,-1978.87934572,0.00024052,2]
[385569055,1757901045161,-1659.5,0.00024108,3]
[385569056,1757901045172,-480.0,0.00024109,3]
[385569057,1757901045183,-1205.42,0.00024109,3]
[385569058,1757901045194,-522.45,0.00024109,3]
[385569059,1757901045205,-480.0,0.00024109,3]
[385569060,1757901045216,-360.0,0.00024196,2]
[385569061,1757901045227,-1000.0,0.00024248,2]
[385569062,1757901045238,-1000.0,0.00024248,2]
[385569063,1757901045248,-1000.0,0.0002436,2]
[385569064,1757901045257,-1000.0,0.0002436,2]
[385569065,1757901045267,-1000.0,0.0002436,2]
[385569066,1757901045278,-1000.0,0.0002436,2]
[385569067,1757901045288,-1000.0,0.0002436,2]
[385569068,1757901045298,-1000.0,0.0002436,2]
[385569069,1757901045309,-573.95030319,0.0002436,2]
[385569070,1757901045320,-1000.0,0.0002436,2]
[385569071,1757901045331,-1000.0,0.0002436,2]
[385569072,1757901045342,-157.42770127,0.0002438,3]
[385569073,1757901045353,-157.4739652,0.0002438,3]
[385569074,1757901045363,-159.3650232,0.0002438,3]
[385569075,1757901045374,-157.62640794,0.0002438,3]
[385569076,1757901045384,-158.35024332,0.0002438,3]
[385569077,1757901045395,-161.1841645,0.0002438,3]
[385569078,1757901045406,-157.93389443,0.0002438,3]
[385569079,1757901045417,-158.10366846,0.0002438,3]
[385569080,1757901045428,-196.38227234,0.0002438,3]
[385569081,1757901045439,-420.0,0.0002438,3]
[385569082,1757901045450,-1659.5,0.00024382,3]
[385569083,1757901045461,-151.0,0.00024382,7]
[385569084,1757901045472,-206.604516,0.00024383,7]
[385569085,1757901045482,-480.0,0.00024383,3]
[385569086,1757901045493,-1205.42,0.00024383,3]
[385569087,1757901045503,-522.45,0.00024383,3]
[385569088,1757901045514,-480.0,0.00024383,3]
[385569089,1757901045526,-2000.0,0.000244,2]
[385569090,1757901045537,-2000.0,0.000244,2]
[385569091,1757901045547,-1000.0,0.00024462,2]
[385569092,1757901045558,-1000.0,0.0002447,2]
[385569093,1757901045569,-1000.0,0.00024481,2]
[385569094,1757901045580,-2646.39381884,0.00024508,2]
[385569095,1757901045590,-1539.79378267,0.00024508,2]
[385569096,1757901045602,-1153.36630454,0.0002455,2]
[385569097,1757901045612,-2859.0264385,0.0002456,2]
[385569098,1757901045624,-151.0,0.000246,6]
[385569099,1757901045635,-1000.0,0.000246,3]
[385569100,1757901045644,-1000.0,0.000246,5]
[385569101,1757901045654,-1000.0,0.000246,7]
[385569102,1757901045663,-31968.55568171,0.0002465,2]
[385569103,1757901045678,-300.0,0.0002465,2]
[385569118,1757901046332,-4601.16717591,0.0002465,2]
[385569128,1757901095260,450.91128927,0.00021698,2]
[385569129,1757901098867,212.75566127,0.000199,2]
[385569130,1757901103774,957.02764946,0.00021698,2]
[385569139,1757901410087,323.4226635,0.00023288,30]
[385569167,1757901949677,3770.8,0.00030267,50]
[385569175,1757902025864,10000.0,0.00030267,50]
[385569178,1757902041137,-159.746382,0.00020749,2]
[385569182,1757902095012,1540.44921837,0.00030267,120]
[385569185,1757902160118,-3883.22596854,0.00020542,2]
[385569186,1757902160138,-159.396581,0.00021479,2]
[385569187,1757902160157,-1000.0,0.00021647,2]
[385569188,1757902174074,-300.0,0.00021914,2]
[385569189,1757902174100,-1111.2,0.00021914,2]
[385569212,1757902232597,-200.86439567,0.00022353,3]
[385569213,1757902232608,-491.07170157,0.00022353,3]
[385569214,1757902232617,-1200.0,0.00022535,2]
[385569215,1757902232627,-217.82061966,0.00022548,2]
[385569216,1757902232636,-160.0,0.00022548,2]
[385569217,1757902232645,-368.61007673,0.0002266,2]
[385569218,1757902232654,-300.0,0.00022696,2]
[385569219,1757902232664,-480.0,0.00022697,3]
[385569220,1757902232675,-480.0,0.00022697,3]
[385569221,1757902232684,-480.0,0.00022697,3]
[385569222,1757902232693,-480.0,0.00022697,3]
[385569223,1757902232703,-480.0,0.00022697,3]
[385569224,1757902232712,-703.16,0.00022698,3]
[385569225,1757902232721,-480.0,0.00022698,3]
[385569226,1757902232731,-480.0,0.00022699,3]
[385569228,1757902232740,-480.0,0.00022699,3]
[385569229,1757902232749,-500.0,0.00022699,2]
[385569230,1757902232758,-500.0,0.00022699,2]
[385569231,1757902232767,-500.0,0.00022699,2]
[385569232,1757902232776,-432.3661916,0.00022699,2]
[385569233,1757902232785,-164.99274711,0.00022699,2]
[385569234,1757902232794,-500.0,0.00022699,2]
[385569235,1757902232803,-457.26196658,0.00022699,2]
[385569236,1757902232813,-289.15808883,0.00022699,3]
[385569237,1757902232822,-1037.19,0.00022699,3]
[385569238,1757902232830,-480.0,0.00022699,3]
[385569239,1757902232839,-3000.0,0.000227,2]
[385569240,1757902232849,-3000.0,0.0002271,2]
[385569241,1757902232858,-3000.0,0.0002272,2]
[385569242,1757902232867,-3000.0,0.0002273,2]
[385569243,1757902232876,-3000.0,0.0002274,2]
[385569244,1757902232885,-3000.0,0.0002275,2]
[385569245,1757902232894,-3000.0,0.0002276,2]
[385569246,1757902232903,-3000.0,0.0002277,2]
[385569247,1757902232912,-3000.0,0.0002278,2]
[385569248,1757902232922,-3000.0,0.0002279,2]
[385569249,1757902232931,-3000.0,0.000228,2]
[385569250,1757902232940,-3000.0,0.0002281,2]
[385569251,1757902232949,-3000.0,0.0002282,2]
[385569252,1757902232959,-3000.0,0.0002283,2]
[385569253,1757902232968,-3000.0,0.0002284,2]
[385569254,1757902232977,-3000.0,0.0002285,2]
[385569255,1757902232986,-3000.0,0.0002286,2]
[385569256,1757902232995,-3000.0,0.0002287,2]
[385569257,1757902233004,-3171.769865,0.0002288,2]
[385569258,1757902233013,-480.0,0.00022971,3]
[385569259,1757902233023,-480.0,0.00022971,3]
[385569260,1757902233032,-703.16,0.00022972,3]
[385569261,1757902233042,-480.0,0.00022972,3]
[385569262,1757902233051,-1037.19,0.00022973,3]
[385569263,1757902233061,-480.0,0.00022973,3]
[385569264,1757902233071,-150.28976063,0.0002304,2]
[385569265,1757902233080,-480.0,0.00023245,3]
[385569266,1757902233091,-480.0,0.00023245,3]
[385569267,1757902233100,-703.16,0.00023246,3]
[385569268,1757902233110,-480.0,0.00023246,3]
[385569269,1757902233120,-1037.19,0.00023247,3]
[385569270,1757902233130,-480.0,0.00023247,3]
[385569271,1757902233139,-217.82061966,0.00023247,3]
[385569272,1757902233149,-480.0,0.00023519,3]
[385569273,1757902233159,-278.82538718,0.00023519,3]
[385569274,1757902233169,-703.16,0.0002352,3]
[385569275,1757902233178,-480.0,0.0002352,3]
[385569276,1757902233188,-1037.19,0.00023521,3]
[385569277,1757902233198,-480.0,0.00023521,3]
[385569278,1757902233207,-368.61007672,0.00023732,2]
[385569279,1757902233217,-480.0,0.00023793,3]
[385569280,1757902233227,-703.16,0.00023794,3]
[385569281,1757902233237,-275.94811147,0.00023794,3]
[385569282,1757902233247,-1037.19,0.00023795,3]
[385569283,1757902233257,-480.0,0.00023795,3]
[385569284,1757902233267,-236.45986329,0.00023851,2]
[385569285,1757902233277,-977.0,0.00023955,2]
[385569286,1757902233286,-2156.0,0.00023955,2]
[385569287,1757902233295,-634.0,0.00023955,2]
[385569288,1757902233305,-410.0,0.00023955,2]
[385569289,1757902233315,-182.894,0.0002399,5]
[385569290,1757902233324,-480.0,0.00024067,3]
[385569291,1757902233333,-703.16,0.00024068,3]
[385569292,1757902233343,-692.15,0.00024068,2]
[385569293,1757902233352,-1037.19,0.00024069,3]
[385569294,1757902233361,-480.0,0.00024069,3]
[385569295,1757902233371,-480.0,0.00024341,3]
[385569296,1757902233380,-703.16,0.00024342,3]
[385569297,1757902233390,-1037.19,0.00024343,3]
[385569298,1757902233399,-480.0,0.00024343,3]
[385569299,1757902233409,-500.0,0.0002438,3]
[385569300,1757902233419,-2000.0,0.000244,2]
[385569301,1757902233429,-2000.0,0.000244,2]
[385569302,1757902233439,-233.1999649,0.00024498,2]
[385569303,1757902233448,-160.0,0.00024498,2]
[385569304,1757902233458,-160.0,0.00024498,2]
[385569305,1757902233467,-847.27885267,0.00024498,2]
[385569306,1757902233477,-417.15472785,0.00024498,2]
[385569307,1757902233487,-160.0,0.00024498,2]
[385569308,1757902233496,-160.0,0.00024498,2]
[385569309,1757902233506,-160.0,0.00024498,2]
[385569310,1757902233515,-1213.63622336,0.000245,2]
[385569311,1757902233529,-1087.7944546,0.00024518,2]
[385569312,1757902233538,-249.67772667,0.0002455,2]
[385569313,1757902233548,-160.0,0.00024569,2]
[385569314,1757902233558,-480.0,0.00024615,3]
[385569315,1757902233568,-703.16,0.00024616,3]
[385569316,1757902233578,-196.047121,0.00024617,7]
[385569317,1757902233587,-151.0,0.00024617,7]
[385569318,1757902233598,-1037.19,0.00024617,3]
[385569319,1757902233608,-480.0,0.00024617,3]
[385569320,1757902233617,-420.0,0.00024645,2]
[385569321,1757902233627,-23808.01983795,0.0002465,2]
[385569322,1757902233695,-1956.54953975,0.0002465,2]
[385569329,1757902238384,-191.2976064,0.00022829,2]
[385569330,1757902238394,-500.0,0.00022829,2]
[385569331,1757902238403,-500.0,0.00022829,2]
[385569332,1757902238413,-500.0,0.00022829,2]
[385569333,1757902238423,-463.53889521,0.00022829,2]
[385569334,1757902238433,-500.0,0.00022829,2]
[385569335,1757902238442,-500.0,0.00022829,2]
[385569336,1757902238452,-46.40349839,0.00022829,2]
[385569370,1757902240628,-480.0,0.00022699,3]
[385569372,1757902240638,-453.59650161,0.00022829,2]
[385569373,1757902240647,-480.0,0.00022973,3]
[385569375,1757902240657,-480.0,0.00023247,3]
[385569377,1757902240666,-480.0,0.00023521,3]
[385569379,1757902240675,-176.129325,0.00024616,7]
[385569381,1757902240685,-8990.27417339,0.0002465,2]
[385569383,1757902240818,-278.890198,0.0002465,2]
[385569384,1757902240830,-1556.58416224,0.0002465,2]
[385569385,1757902240850,-506.1753918,0.0002465,2]
[385569386,1757902240880,-500.0,0.00024654,3]
[385569387,1757902240891,-380.0,0.00024658,2]
[385569388,1757902240901,-200.0,0.00024658,15]
[385569389,1757902240924,-200.0,0.00024658,2]
[385569390,1757902240935,-151.0,0.00024658,7]
[385569391,1757902240944,-151.0,0.00024658,7]
[385569392,1757902240953,-151.0,0.00024658,3]
[385569393,1757902240962,-500.0,0.00024658,2]
[385569394,1757902240971,-500.0,0.00024673,2]
[385569395,1757902240980,-500.0,0.00024673,2]
[385569396,1757902240989,-500.0,0.00024673,2]
[385569397,1757902240998,-500.0,0.00024673,2]
[385569398,1757902241007,-500.0,0.00024673,2]
[385569399,1757902241016,-500.0,0.00024673,2]
[385569400,1757902241025,-379.39441113,0.00024673,2]
[385569401,1757902241034,-500.0,0.00024673,2]
[385569402,1757902241044,-465.88,0.000247,7]
[385569403,1757902241053,-151.0,0.000247,7]
[385569404,1757902241062,-4347.01762078,0.000247,2]
[385569599,1757902517702,3284.44625557,0.00022246,2]
[385569600,1757902526567,229.59853647,0.00022246,2]
[385569605,1757902685361,159.0,0.0002,3]
[385569747,1757902693873,159.13999999,0.0002,3]
[385569787,1757903237353,-157.88,0.00022,2]
[385569788,1757903237374,-480.0,0.00022698,3]
[385569789,1757903237395,-480.0,0.00022699,3]
[385569790,1757903237415,-415.11056541,0.00022699,3]
[385569803,1757903307960,265.1563608,0.00030264,120]
[385569804,1757903309699,881.20827561,0.00030264,60]
[385569805,1757903313565,525.95058399,0.00030264,60]
[385569806,1757903314868,238.13145558,0.00030264,120]
[385569811,1757903322689,204.07435934,0.00030264,120]
[385569842,1757903432738,-34.81719766,0.00022699,3]
[385569843,1757903432748,-523.80725747,0.00022699,3]
[385569844,1757903432757,-300.0,0.00023183,2]
[385569845,1757903432766,-587.80068365,0.00023184,2]
[385569846,1757903432778,-10005.0118701,0.00023184,2]
[385569847,1757903432787,-449.0,0.00023222,2]
[385569849,1757903432796,-276.45755754,0.000239,2]
[385569851,1757903432805,-16792.41089253,0.00024,2]
[385569852,1757903432814,-8252.38450293,0.00024,2]
[385569855,1757903432824,-1707.70938587,0.00024,2]
[385569856,1757903432833,-480.0,0.00024253,3]
[385569857,1757903432842,-480.0,0.00024253,3]
[385569858,1757903432851,-506.90457011,0.00024253,3]
[385569859,1757903432860,-480.0,0.00024253,3]
[385569860,1757903432870,-480.0,0.00024253,3]
[385569862,1757903432880,-977.0,0.00024254,2]
[385569863,1757903432889,-634.0,0.00024254,2]
[385569864,1757903432898,-2156.0,0.00024254,2]
[385569865,1757903432907,-410.0,0.00024254,2]
[385569866,1757903432919,-168.0,0.00024265,2]
[385569867,1757903432929,-182.894,0.00024265,6]
[385569868,1757903432941,-160.0,0.00024453,2]
[385569869,1757903432951,-496.98635774,0.00024456,3]
[385569870,1757903432961,-168.0,0.00024457,2]
[385569871,1757903432970,-1806.0,0.000245,5]
[385569872,1757903432979,-480.0,0.00024527,3]
[385569873,1757903432990,-480.0,0.00024527,3]
[385569874,1757903432999,-480.0,0.00024527,3]
[385569875,1757903433009,-160.0,0.00024548,2]
[385569876,1757903433018,-160.0,0.00024548,2]
[385569877,1757903433027,-160.0,0.00024548,2]
[385569878,1757903433036,-417.15472785,0.00024548,2]
[385569879,1757903433045,-846.05552887,0.00024562,2]
[385569880,1757903433055,-160.0,0.00024594,2]
[385569881,1757903433064,-480.0,0.00024599,3]
[385569882,1757903433074,-691.46,0.00024599,3]
[385569883,1757903433084,-480.0,0.00024599,3]
[385569884,1757903433093,-287.36199578,0.00024599,3]
[385569885,1757903433102,-150.0,0.000246,2]
[385569886,1757903433111,-2000.0,0.000246,2]
[385569887,1757903433120,-160.0,0.000246,7]
[385569888,1757903433129,-161.90936464,0.000246,7]
[385569889,1757903433139,-202.0,0.0002461,11]
[385569890,1757903433148,-500.0,0.00024657,2]
[385569891,1757903433158,-500.0,0.00024657,2]
[385569892,1757903433167,-500.0,0.00024657,2]
[385569893,1757903433177,-500.0,0.00024657,2]
[385569894,1757903433189,-424.47722665,0.00024657,2]
[385569895,1757903433198,-380.0,0.00024658,2]
[385569896,1757903433207,-4563.43697034,0.000247,2]
[385569897,1757903433216,-12.38915567,0.000247,2]
[385569934,1757903438537,-436.16499774,0.00024527,3]
[385569935,1757903438547,-214.47500226,0.00024773,2]
[385569936,1757903438593,-285.52499774,0.00024773,2]
[385569937,1757903438602,-11714.24292405,0.00024774,2]
[385569938,1757903438613,-531.9799992,0.00024774,2]
[385569939,1757903438624,-791.15330908,0.00024774,2]
[385569940,1757903438636,-485.47782603,0.00024774,2]
[385569997,1757903443820,-989.779116,0.000247,2]
[385569998,1757903443830,-3050.85803553,0.00024774,2]
[385569999,1757903443840,-276.45755754,0.00024795,2]
[385570000,1757903443850,-22772.03,0.000248,7]
[385570001,1757903443859,-1641.53,0.000248,7]
[385570002,1757903443868,-847.27885267,0.000248,7]
[385570003,1757903443878,-233.1999649,0.000248,7]
[385570004,1757903443887,-535.7,0.000248,7]
[385570005,1757903443897,-417.15472785,0.000248,7]
[385570006,1757903443906,-500.0,0.000248,2]
[385570007,1757903443917,-500.0,0.000248,7]
[385570008,1757903443926,-153.69523048,0.000248,7]
[385570009,1757903443935,-353.63292561,0.00024801,3]
[385570010,1757903443945,-480.0,0.00024801,3]
[385570011,1757903443955,-594.31361938,0.00024801,3]
[385570012,1757903443964,-4152.97525636,0.00024806,2]
[385570013,1757903443973,-13423.4855487,0.00024851,2]
[385570014,1757903443983,-500.0,0.00024873,2]
[385570015,1757903443993,-480.0,0.00024873,3]
[385570016,1757903444002,-691.46,0.00024873,3]
[385570017,1757903444011,-480.0,0.00024873,3]
[385570018,1757903444021,-663.31,0.00024889,2]
[385570019,1757903444030,-2597.36335064,0.000249,30]
[385570020,1757903444039,-151.0,0.000249,8]
[385570021,1757903444048,-151.0,0.000249,9]
[385570022,1757903444058,-151.0,0.000249,7]
[385570023,1757903444067,-179023.490975,0.000249,2]
[385570024,1757903444077,-168.0,0.00024906,2]
[385570025,1757903444086,-34870.771124,0.0002497,2]
[385570026,1757903444097,-436.90389401,0.0002497,2]
[385570071,1757903446645,-1024.73579726,0.0002497,2]
[385570076,1757903446699,-1042.883856,0.0002497,2]
[385570091,1757903935144,10000.0,0.00027397,120]
[385570093,1757903965056,4100.0,0.00027397,120]
[385570094,1757904062028,465.51036641,0.00030259,50]
[385570103,1757904441097,-300.0,0.00022598,2]
[385570104,1757904441120,-1200.0,0.00022598,2]
[385570105,1757904441141,-95.88247145,0.00022599,2]
[385570107,1757904620254,450.91128927,0.00022373,2]
[385570161,1757904637842,-1036.8060231,0.00022373,2]
[385570166,1757904637896,-3188.34940386,0.00022373,2]
[385570167,1757904637907,-774.84457304,0.00022373,2]
[385570168,1757904637916,-500.0,0.00022573,2]
[385570169,1757904637925,-108.29087912,0.00022597,2]
[385570170,1757904637951,-191.70912088,0.00022597,2]
[385570171,1757904637961,-1200.0,0.00022597,2]
[385570172,1757904637971,-500.0,0.00022598,2]
[385570173,1757904637979,-500.0,0.00022598,2]
[385570174,1757904637989,-158.74450935,0.00022598,2]
[385570180,1757904639825,-232.62517749,0.00022598,2]
[385570181,1757904639834,-20.98579531,0.00022598,2]
[385570182,1757904639878,-479.01420469,0.00022598,2]
[385570183,1757904639887,-500.0,0.00022598,2]
[385570184,1757904639896,-500.0,0.00022598,2]